Cogmind - Beta 13 @@@ ROGUE MODE // 2024.03.10 @ 10:29:36 Player: f3-rnm Result: Destroyed by D-53 Grenadier with Mini Grenade Launcher Performance ------------- Evolutions (2) 1000 Regions Visited (4) 800 Robots Destroyed (86) 430 Value Destroyed (2717) 2717 Prototype IDs (19) 380 Alien Tech Used (0) 0 Bonus (181) 181 TOTAL SCORE: 5508 Bonus ------- High Alert Combat Kills 76 Follower Combat Kills 105 Cogmind --------- Core Integrity 0/550 Matter 39/300 Energy 150/150 System Corruption 8% Temperature Cool (0) Movement Treading (320) Ox2 Location -8/Storage Parts ------- > --- POWER (1) -------- Light Angular Momentum Engine > --- PROPULSION (4) --- Light Treads Light Treads > --- UTILITY (4) ------ Heat Sink Huge Storage Unit Transport Network Coupler > --- WEAPON (2) ------- Heavy Assault Cannon > --- INVENTORY (25) --- Improved Ion Engine Improved Flight Unit Improved VTOL Module Flightbrick Large Storage Unit Small Matter Pod (50) Advanced Weight Redist. System Improved Utility Shielding Improved Light Armor Plating System Shield Rainbow Chip Improved EM Shotgun Improved EM Shotgun Improved Grenade Launcher Multitool Mace Scythe Peak State ------------ > --- POWER ------------ Improved Ion Engine > --- PROPULSION ------- Light Treads Compact Wheel Compact Wheel Aerolev Unit > --- UTILITY ---------- Improved Heat Sink Huge Storage Unit Transport Network Coupler Improved Light Armor Plating > --- WEAPON ----------- Mace Scythe > --- INVENTORY -------- Light Nuclear Core Light Angular Momentum Engine Light Treads Aerolev Unit Aerolev Unit Improved Flight Unit Improved VTOL Module Flightbrick Large Storage Unit Small Matter Pod Advanced Weight Redist. System Improved Utility Shielding Improved Light Armor Plating Improved Light Armor Plating Improved Light Armor Plating Rainbow Chip Improved Medium Laser Heavy Particle Gun Advanced Beam Rifle Improved Grenade Launcher Multitool Katana [Rating: 32] Favorites ----------- Power Ion Engine Engine Ion Engine Propulsion Light Treads Treads Light Treads Wheel Compact Wheel Hover Unit Aerolev Unit Flight Unit Improved Flight Unit Utility Transport Network Coupler Device Improved Heat Sink Storage Huge Storage Unit Processor Transport Network Coupler Protection Scrap Shield Weapon Makeshift Shrapnel Gun Energy Gun EM Pulse Gun Energy Cannon Advanced Beam Cannon Ballistic Gun Makeshift Shrapnel Gun Ballistic Cannon Assault Cannon Launcher Advanced EMP Blaster Impact Weapon Mace Slashing Weapon Scythe Build | -11 -10 -10 -8 -8 ------- Run | Yrd Mat Sub Mat Sto Slots Evolved 4 | . . . 4 . Power . | . . . . . Propulsion 2 | . . . 2 . Utility 2 | . . . 2 . Weapon . | . . . . . Parts Attached 86 | 6 4 14 18 44 Power 9 | 1 . 2 3 3 Engine 9 | 1 . 2 3 3 Core . | . . . . . Reactor . | . . . . . Propulsion 30 | 2 . 3 5 20 Treads 26 | 2 . 3 5 16 Leg . | . . . . . Wheel 2 | . . . . 2 Hover 1 | . . . . 1 Flight 1 | . . . . 1 Utility 18 | 1 3 4 3 7 Device 4 | . 1 . . 3 Storage 6 | 1 1 2 2 . Processor 1 | . . . 1 . Hackware . | . . . . . Protection 7 | . 1 2 . 4 Artifact . | . . . . . Weapon 29 | 2 1 5 7 14 Energy Gun 10 | 2 1 1 2 4 Energy Cannon 1 | . . . . 1 Ballistic Gun 6 | . . 3 3 . Ballistic Cannon 8 | . . 1 2 5 Launcher 1 | . . . . 1 Special Weapon . | . . . . . Impact Weapon 2 | . . . . 2 Slashing Weapon 1 | . . . . 1 Piercing Weapon . | . . . . . Special Melee Weapon . | . . . . . Unidentified Prototypes 9 | . . . 2 7 Corrupted Parts 1 | . . . . 1 System Corruption 2 | . . . . 2 Parts Lost 33 | . 1 4 9 19 Power 5 | . . 1 1 3 Propulsion 16 | . . 2 4 10 Utility 6 | . . 1 1 4 Weapon 6 | . 1 . 3 2 Highest Loss Streak 6 | . 1 1 5 6 To Critical Strikes . | . . . . . Average Slot Usage (%) 82 | . 99 81 70 91 Engine 10 | . 14 11 9 9 Treads 27 | . 28 28 26 25 Wheel 1 | . . . . 5 Device 2 | . 10 . . 7 Storage 6 | . 14 2 9 9 Processor 3 | . . . 6 9 Protection 8 | . 3 10 1 8 Energy Gun 7 | . 27 8 4 1 Ballistic Gun 9 | . . 16 6 . Ballistic Cannon 4 | . . 2 7 5 Impact Weapon 1 | . . . . 5 Naked Turns . | . . . . . Heaviest Build 104 | 10 17 28 95 104 Greatest Support 82 | 40 40 40 80 82 Greatest Overweight (x) 5 | . . . 1 5 Average Overweight (x) . | . . . . 1 Largest Inventory Capacity 25 | 8 10 10 25 25 Average Capacity 13 | 7 8 5 18 25 Most Carried 25 | 4 10 10 16 25 Average Carried 11 | 1 6 5 13 23 Final Capacity 25 | 8 10 10 25 25 Final Carried 20 | 3 10 10 16 20 Class Distribution -------------------- 61% | Mutant 23% | Scavenger-Mutant 14% | Commander-Mutant Dominant Class ---------------- Mutant | -10/Materials Mutant | -10/Subcaves Scavenger-Mutant | -8/Materials Commander-Mutant | -8/Storage Resources | -11 -10 -10 -8 -8 ----------- Run | Yrd Mat Sub Mat Sto Matter Collected 2480 | 113 177 610 822 758 Remotely 145 | . . . . 145 Salvage Created 3092 | . 307 342 976 1467 Parts 145 | . 15 16 48 66 Haulers Intercepted 7 | . 1 . 1 5 Recyclers Shooed . | . . . . . Parts Field Recycled . | . . . . . Retrieved Matter . | . . . . . Parts Self-Destructed 16 | . . 16 . . Prevented 1 | . . 1 . . Kills | -11 -10 -10 -8 -8 ------- Run | Yrd Mat Sub Mat Sto Combat Hostiles Destroyed 69 | . 8 12 23 26 Melee 5 | . . . . 5 Guns 35 | . 8 12 13 2 Cannons 23 | . . . 10 13 Classes Destroyed 10 | . 3 1 5 1 Worker 4 | . . . 2 2 Builder 2 | . . . 1 1 Hauler 7 | . 1 . 1 5 Recycler 4 | . . . 1 3 Swarmer 14 | . 3 2 7 2 Grunt 30 | . 5 1 13 11 Brawler 3 | . . . 1 2 Duelist 2 | . . . . 2 Sentry 11 | . . . 2 9 Subdweller 9 | . . 9 . . Best Kill Streak 6 | . 4 2 6 6 Combat Bots Only 6 | . 4 2 6 4 Max Kills in Single Turn 2 | . 1 1 1 2 Gunslinging . | . . . . . Exploded . | . . . . . Melee 1 | . . . . 1 Uniques/NPCs Destroyed . | . . . . . Combat | -11 -10 -10 -8 -8 -------- Run | Yrd Mat Sub Mat Sto Hostile Shots Fired 469 | . 58 69 150 192 Missed 106 | . 14 15 34 43 Damage Taken 6005 | . 492 1050 1548 2915 Core 745 | . 48 139 257 301 Absorbed by Shields . | . . . . . Core Remaining (%) 62 | 100 . 25 . . Volleys Fired 273 | . 39 79 79 76 Largest 2 | . 2 2 2 2 Hottest 100 | . 80 90 100 100 Shots Fired 447 | . 75 127 159 86 Gun 301 | . 75 110 104 12 Cannon 146 | . . 17 55 74 Launcher . | . . . . . Special . | . . . . . Kinetic 329 | . . 109 146 74 Thermal 98 | . 73 . 13 12 Explosive . | . . . . . Electromagnetic 20 | . 2 18 . . Robot Hit Streak 19 | . 19 9 10 11 Robot Miss Streak 5 | . 2 3 5 5 Penetration Max 1 | . . . . 1 Secondary Targets 4 | . . 2 2 . Max Gunslinging Chain 1 | . . 1 1 . Shots Hit Robots 303 | . 55 57 98 93 Core Hits 122 | . 16 27 47 32 Critical Kills 3 | . . . 1 2 Critical Parts Destroyed 7 | . . . 1 6 Critical Strikes 16 | . . 1 5 10 Destroy 2 | . . . 2 . Blast 6 | . . 1 3 2 Smash 8 | . . . . 8 Melee Attacks 47 | . . . . 47 Impact 45 | . . . . 45 Slashing 2 | . . . . 2 Piercing . | . . . . . Sneak Attacks 7 | . . . . 7 Combat Hostiles . | . . . . . Follow-up Attacks 1 | . . . . 1 Damage Inflicted 7644 | . 639 1109 2065 3831 Guns 3119 | . 639 1022 1335 123 Cannons 3142 | . . 87 730 2325 Explosions . | . . . . . Melee 1383 | . . . . 1383 Ramming . | . . . . . Kinetic 5249 | . . 991 1933 2325 Thermal 894 | . 639 . 132 123 Explosive . | . . . . . Electromagnetic 118 | . . 118 . . Impact 1351 | . . . . 1351 Slashing 32 | . . . . 32 Piercing . | . . . . . Highest Corruption 8 | . . . 4 8 Average Corruption 5 | . . . 4 6 Corruption Purged . | . . . . . Corruption Blocked . | . . . . . Effects 73 | . . . 16 57 Message Errors 20 | . . . 5 15 Matter Fused 18 | . . . 3 15 Heat Flow Errors 6 | . . . . 6 Energy Discharges 10 | . . . 2 8 Parts Rejected 1 | . . . . 1 Parts Fused 1 | . . . . 1 Data Loss (minor) 5 | . . . 2 3 Data Loss (major) 4 | . . . . 4 Misfires 5 | . . . 3 2 Weapon Failures 3 | . . . 1 2 Overload Shots . | . . . . . Overflow Damage 511 | . . . 8 503 Projectiles 99 | . . . 8 91 Explosions . | . . . . . Melee 412 | . . . . 412 Knockbacks 30 | . . 2 16 12 Impact 4 | . . . . 4 Kinetic 22 | . . 2 12 8 Secondary 4 | . . . 4 . Self-Inflicted Damage . | . . . . . Shots . | . . . . . Rammed . | . . . . . Targets Rammed . | . . . . . Kicked . | . . . . . Crushed . | . . . . . Highest Temperature 378 | . 36 . 201 378 Average Temperature 62 | . 14 . 42 107 Received Heat Transfer 1947 | . 267 105 765 810 Siege Activations . | . . . . . Robots Corrupted . | . . . . . Combat Hostiles . | . . . . . Parts Fried 9 | . . . . 9 Impact Corruptions 17 | . . . . 17 Robots Melted . | . . . . . Combat Hostiles . | . . . . . Parts Melted 4 | . 3 . 1 . Heat Transferred 2005 | . 1450 . 296 259 Parts Sabotaged . | . . . . . Parts Stolen . | . . . . . Parts Stripped . | . . . . . Power Chain Reactions . | . . . . . Alert | -11 -10 -10 -8 -8 ------- Run | Yrd Mat Sub Mat Sto Peak Influence 585 | . 177 . 402 585 Initial 127 | . . . . 127 Average 226 | . 90 . 225 264 Maximum Alert Level 2 | . . . 2 2 Low Security (%) 44 | 100 100 . 38 34 Level 1 42 | . . . 49 48 Level 2 12 | . . . 11 16 Level 3 . | . . . . . Level 4 . | . . . . . Level 5 . | . . . . . High Security . | . . . . . Max Security . | . . . . . Squads Dispatched 5 | . . . 3 2 Investigation . | . . . . . Extermination . | . . . . . Reinforcement 4 | . . . 3 1 Assault 1 | . . . . 1 Garrison . | . . . . . Intercept . | . . . . . Searches Triggered . | . . . . . Construction Impeded 1 | . . . 1 . Haulers Reinforced . | . . . . . Active Scanning Responses . | . . . . . Cargo Convoy Interrupts . | . . . . . Stealth | -11 -10 -10 -8 -8 --------- Run | Yrd Mat Sub Mat Sto Distress Signals 5 | . . . 2 3 Communications Jammed . | . . . . . Distress Signals . | . . . . . Times Spotted 104 | . 8 23 34 39 Peak Tracking Total 8 | . 5 3 8 6 Tactical Retreats 5 | . . 1 3 1 Traps | -11 -10 -10 -8 -8 ------- Run | Yrd Mat Sub Mat Sto Traps Triggered 4 | . . 1 . 3 Indirectly . | . . . . . Trap Hack Attempts . | . . . . . Triggered . | . . . . . Disarmed . | . . . . . Reprogrammed . | . . . . . Reused . | . . . . . Traps Extracted . | . . . . . Installed . | . . . . . Triggered 2 | . . 2 . . Machines | -11 -10 -10 -8 -8 ---------- Run | Yrd Mat Sub Mat Sto Machines Disabled 13 | . . 1 4 8 Max in Single Turn 2 | . . 1 1 2 Garrison Access 1 | . . . . 1 Machines Repaired . | . . . . . Machines Dismantled . | . . . . . Machines Sabotaged . | . . . . . Overloaded Fab Kills . | . . . . . Hacking | -11 -10 -10 -8 -8 --------- Run | Yrd Mat Sub Mat Sto Machines Accessed 5 | . . 2 1 2 Terminals 2 | . . . 1 1 Fabricators . | . . . . . Repair Stations . | . . . . . Recycling Units . | . . . . . Scanalyzers . | . . . . . Garrison Access 1 | . . . . 1 Total Hacks 12 | . . 5 2 5 Successful 8 | . . 5 1 2 Failed 4 | . . . 1 3 Catastrophic . | . . . . . Database Lockouts . | . . . . . Manual 5 | . . . 1 4 Terminals 6 | . . . 2 4 Fabricators . | . . . . . Repair Stations . | . . . . . Recycling Units . | . . . . . Scanalyzers . | . . . . . Garrison Access 1 | . . . . 1 Terminal Hacks 7 | . . 5 1 1 Record 4 | . . 4 . . Branch Access Points 1 | . . . 1 . Alert Level 1 | . . . . 1 Derelict Proto ID Bank 1 | . . 1 . . Fabricator Hacks . | . . . . . Repair Station Hacks . | . . . . . Recycling Unit Hacks . | . . . . . Scanalyzer . | . . . . . Garrison Access Hacks 1 | . . . . 1 Seal Access 1 | . . . . 1 Unauthorized Hacks . | . . . . . Terminals . | . . . . . Fabricators . | . . . . . Repair Stations . | . . . . . Recycling Units . | . . . . . Scanalyzers . | . . . . . Garrison Access . | . . . . . Data Cores Recovered . | . . . . . Used . | . . . . . Hacking Detections 2 | . . . 1 1 Full Trace Events . | . . . . . Feedback Events . | . . . . . Feedback Blocked . | . . . . . Robot Schematics Acquired . | . . . . . Robots Built . | . . . . . Authchips . | . . . . . Time . | . . . . . Total Robot Build Rating . | . . . . . Part Schematics Acquired . | . . . . . Parts Built . | . . . . . Authchips . | . . . . . Time . | . . . . . Total Part Build Rating . | . . . . . Parts Repaired . | . . . . . Time . | . . . . . Parts Recycled . | . . . . . Recycled Matter . | . . . . . Retrieved Matter . | . . . . . Retrieved Components . | . . . . . Parts Scanalyzed . | . . . . . Part Schematics Acquired . | . . . . . Parts Damaged . | . . . . . Bothacking | -11 -10 -10 -8 -8 ------------ Run | Yrd Mat Sub Mat Sto Used RIF Installer . | . . . . . Robots Hacked . | . . . . . Non-combat . | . . . . . Combat . | . . . . . Robot Hacks Applied . | . . . . . Relay Couplers Released . | . . . . . Fabnet Peak Effective % . | . . . . . Robots Rewired . | . . . . . Allies Hacked . | . . . . . Hacks Repelled . | . . . . . Allies | -11 -10 -10 -8 -8 -------- Run | Yrd Mat Sub Mat Sto Total Allies 10 | . . . . 10 Largest Group 10 | . . . . 10 Highest-Rated Group 173 | . . . . 173 Highest-Rated Ally 29 | . . . . 29 Total Orders 1 | . . . . 1 STAY 1 | . . . . 1 Ally Attacks 25 | . . . . 25 Total Damage 392 | . . . . 392 Kills 4 | . . . . 4 Allies Corrupted . | . . . . . Allies Melted . | . . . . . Intel | -11 -10 -10 -8 -8 ------- Run | Yrd Mat Sub Mat Sto Robot Analysis Total . | . . . . . Derelict Logs Recovered 1 | . . 1 . . Drone Launches . | . . . . . Drone Recoveries . | . . . . . Exploration | -11 -10 -10 -8 -8 ------------- Run | Yrd Mat Sub Mat Sto Turns Passed 6835 | 90 336 3442 1196 1771 Spaces Moved 3020 | 50 131 1918 350 571 Core 3 | 3 . . . . Treads 2793 | 47 131 1918 350 347 Legs . | . . . . . Wheels 224 | . . . . 224 Hover . | . . . . . Flight . | . . . . . Fastest Speed 50 | 50 160 160 160 130 Average Speed 170 | 153 160 160 183 203 Slowest Speed 320 | 160 160 160 240 320 Overloaded Moves . | . . . . . Propulsion Burnouts . | . . . . . Robots Hopped . | . . . . . Cave-ins Triggered . | . . . . . Exploration Rate (%) 47 | 5 23 88 37 86 Regions Visited 4 Branch Regions 2 Pre-discovered Areas 2 | . . 2 . . Known Exits Taken 1 | . . . 1 . Unknown Exits Taken 3 | 1 1 1 . . Scrap Searched 9 | . . 9 . . Spaces Dug 4 | . . . . 4 Terrain Destroyed 31 | . . . 9 22 Melee 4 | . . . . 4 Projectile 27 | . . . 9 18 AOE . | . . . . . Terrain Rammed . | . . . . . Walls Destroyed . | . . . . . Machines Disabled . | . . . . . Actions | -11 -10 -10 -8 -8 --------- Run | Yrd Mat Sub Mat Sto Total 4179 | 62 182 2173 768 994 Wait 615 | . . 124 300 191 Move 3016 | 49 130 1917 349 571 Hop . | . . . . . Pick Up 84 | 7 8 15 14 40 Fast Attach 27 | 2 1 5 8 11 Attach 35 | 4 2 4 7 18 Detach 2 | . . 1 1 . Swap 24 | . 1 5 3 15 Drop 50 | . 1 15 7 27 Fire 273 | . 39 79 79 76 Melee 45 | . . . . 45 Ram . | . . . . . Kick . | . . . . . Crush . | . . . . . Escape Stasis . | . . . . . Rewire . | . . . . . Trap . | . . . . . Miscellaneous 8 | . . 8 . . Route ------- -11/Scrapyard -10/Materials -10/Subcaves (discovered 2 exits: *Mat x2) -8/Materials (discovered 2 exits: [*Fac] / *Sto) -8/Storage (discovered 1 exit: [*Fac]) History --------- Turn | Location | Event 9 | -11/Scrapyard | Discovered new exit (range 16) 91 | -11/Scrapyard | Entered Materials 303 | -10/Materials | Build established: Mutant 370 | -10/Materials | Discovered new exit (range 10) 427 | -10/Materials | Entered Subcaves 440 | -10/Subcaves | Learned 4 Materials zone layouts 542 | -10/Subcaves | Shifting Twisted Machinery released Barrage Gun 557 | -10/Subcaves | Shifting Twisted Machinery released Sub. Monowheel 638 | -10/Subcaves | Discovered new exit (range 7) 892 | -10/Subcaves | Learned location of Zion (-6) 892 | -10/Subcaves | Met a Zionite searching for "candidates" 892 | -10/Subcaves | Discovered new exit (range 9) 2202 | -10/Subcaves | Shifting Twisted Machinery released Shrapnel Trap 2419 | -10/Subcaves | Shifting Twisted Machinery released Spk. Treads 2454 | -10/Subcaves | Shifting Twisted Machinery released Battle Rifle 2477 | -10/Subcaves | Shifting Twisted Machinery released Flamer 2626 | -10/Subcaves | Visited Clippyterm 2637 | -10/Subcaves | Learned location of Section 7 (-2) 2769 | -10/Subcaves | Disturbed a concealed Subdweller 2862 | -10/Subcaves | A Subdweller sparked back to life 2862 | -10/Subcaves | A Subdweller sparked back to life 2894 | -10/Subcaves | Core integrity fell below 50% 3146 | -10/Subcaves | A swath of the cavern ceiling suddenly collapsed 3233 | -10/Subcaves | Visited 4L-MR0's lab 3251 | -10/Subcaves | Found Flightbrick 3482 | -10/Subcaves | Found Rainbow Chip 3869 | -10/Subcaves | Entered Materials 3869 | -8/Materials | Evolved 4 slots: Propulsion x2, Utility x2 4055 | -8/Materials | Identified exit to Storage 4184 | -8/Materials | Lost 5 parts (1p2n1u1w) 4523 | -8/Materials | Build established: Scavenger-Mutant 4568 | -8/Materials | Discovered new exit (range 5) 5065 | -8/Materials | Entered Storage 5594 | -8/Storage | Lost 5 parts (1p3n1u) 5819 | -8/Storage | Assisted by bots powering up and referring to "LRC-V3" 5819 | -8/Storage | Core integrity fell below 50% 5933 | -8/Storage | Discovered new exit (range 15) 6153 | -8/Storage | Build established: Commander-Mutant 6665 | -8/Storage | First assault squad dispatched 6829 | -8/Storage | Core integrity fell below 20% 6836 | -8/Storage | Destroyed by D-53 Grenadier with Mini Grenade Launcher Last Messages --------------- 06806_ Slug penetrates B-36 Bruiser. 06806_ Destroyed Lgt. Armor Plating. 06808_ B-36 Bruiser destroyed. 06813_ Acquired 52 matter. 06814_ System corrupted: Hvy. Assault Cannon rejected. 06816_ Acquired Hvy. Assault Cannon. 06822_ Lgt. Treads destroyed. 06822_ Imp. Ion Engine destroyed. 06824_ Hvy. Assault Cannon destroyed. 06825_ Slug penetrates D-53 Grenadier. 06825_ Destroyed Shock Absorption System. 06825_ D-53 Grenadier knocked back. 06828_ Lgt. Treads destroyed. 06829_ The unstable cave ceiling collapses. 06830_ Imp. Light Armor Plating destroyed. 06830_ Lgt. Treads destroyed. 06830_ D-53 Grenadier destroyed. 06835_ System corrupted: Substantial component data lost. 06835_ Slug penetrates D-53 Grenadier. 06835_ D-53 Grenadier knocked back. Map ----- +----------------------------------------------------+ | ????????????# = [%+= ##??""" | | ????????????# ! ! #% "#?? | | ????????????#######+###### ####### | | ?????????????????# ==% | | ?????????????????# !!]= | | ?????????????????# % ! %! a | | ???????????????### ########+######## | | ???????#########"#% %##????? ???????? | | ???????# """ """ # #??????""???????? | | ???????# """ """ #% #??????""???????? | | ???????# """ " " # #???????????????? | | ???????# [+ #???????????????? | | ???????# * # #???????????????? | | ???????# !# #???????????????? | | ???????# ]# #???????????????? | | ???????# [ # #???????????????? | | ???????####### ### #???###?????????? | | ????????#### ###?# #?? ??????????? | | ????????# #?#= %#? ???????????? | | ????????# """"### ]*# "????????????? | | ??????### " ##! ]# "="??????????? | | ??????# # !%+ [ ??????????? | | ?###### / # ]%; %"["??????????? | | ; + "????????????? | | ?# #? ???????????? | | ?# @ d #?####??????????? | | ?# #;######???????????? | | ?# # [!!["###?????????? | | ?# ; "" %"""#?????????? | | ?########## "Y"= R"#?????????? | | ?????????? ! # ""#?????????? | | ????????# # ####?????????? | | ????????# ! # """ #???????????? | | ????????# / a # """ ##???????????? | | ????????# # """ #????????????? | | ????????# # #????????????? | | ????????##########"T"####????????????? | | ?????????????????#"""#???????????????? | | ??????????????????###????????????????? | | | | | | | | | | | | | | | | | | | | | | | +----------------------------------------------------+ Best States ------------- Heat Dissipation 45 Energy Generation 18 Energy Capacity 265 Matter Stores 300 Matter Capacity 300 Sight Range 16 Terrain Scan Density 10 Armor Coverage 800 Utility Shielding 66 Evasion (%) 40 Recoil Reduction 4 Item Schematics ----------------- None Robot Schematics ------------------ None Fabricated ------------ Nothing Alien Tech Used ----------------- None Achievements -------------- None Challenges ------------ None Game ------ Seed FortressGatlingChainsword Manual? 0 Play Time 00:33:42 Cumulative 160.1 hours Start 2024.03.10 @ 09:52:08 End 2024.03.10 @ 10:29:36 Sessions 1 Manual Loads 0 Difficulty Rogue Special Mode None Game No. 173 Rogue 137 Adventurer 36 Explorer 0 Win Type - Total 9 Types 2/0/7/0/0/0/0/0/0 Lore% 56 Gallery% 80 Achievement% 68 Wizard Run 0 Options --------- Layout 0 ASCII 0 Keyboard 0 Movement Mouse Keybinds 0 Fullscreen 1 Font 18/SmallcapsGlow Map View 76x50 Zoom Use 0% Tactical HUD 1 Map Filters NONE Filters NONE Steam 1 RUN: 375c9f28-9e37-4615-9de9-4a36dc12846d